Cogmind - Beta 13 @@@ ROGUE MODE // 2024.04.18 @ 19:49:48 Player: Gold Spoon Result: Destroyed by G-34 Mercenary with Small Laser Performance ------------- Evolutions (0) 0 Regions Visited (2) 400 Robots Destroyed (18) 90 Value Destroyed (386) 386 Prototype IDs (5) 100 Alien Tech Used (0) 0 Bonus (0) 0 TOTAL SCORE: 976 Bonus ------- None Cogmind --------- Core Integrity 0/250 Matter 272/300 Energy 158/160 System Corruption 5% Temperature Cool (14) Movement Hovering (120) Ox1 Location -10/Mines Parts ------- > --- POWER (1) -------- Light Nuclear Core > --- PROPULSION (2) --- Improved Hover Unit > --- UTILITY (2) ------ Small Storage Unit Signal Interpreter > --- WEAPON (2) ------- Light Assault Rifle Light Assault Rifle > --- INVENTORY (8) ---- Light Ion Engine Light Ion Engine Light Ion Engine Hover Unit Hover Unit Light Assault Rifle Light Assault Rifle Datajack Peak State ------------ > --- POWER ------------ Light Nuclear Core > --- PROPULSION ------- Hover Unit Improved Hover Unit > --- UTILITY ---------- Small Storage Unit Signal Interpreter > --- WEAPON ----------- Light Assault Rifle Light Assault Rifle > --- INVENTORY -------- Light Ion Engine Hover Unit Hover Unit Improved Heat Sink Light Assault Rifle Light Assault Rifle Datajack Shock Trap [Rating: 11] Favorites ----------- Power Light Ion Engine Engine Light Ion Engine Power Core Light Nuclear Core Propulsion Improved Hover Unit Wheel Compact Wheel Hover Unit Improved Hover Unit Utility Small Storage Unit Storage Small Storage Unit Processor Signal Interpreter Weapon Light Assault Rifle Ballistic Gun Light Assault Rifle Build | -11 -10 -10 ------- Run | Yrd Mat Min Slots Evolved . | . . . Power . | . . . Propulsion . | . . . Utility . | . . . Weapon . | . . . Parts Attached 15 | 6 9 . Power 2 | 1 1 . Engine 1 | 1 . . Core 1 | . 1 . Reactor . | . . . Propulsion 7 | 2 5 . Treads . | . . . Leg . | . . . Wheel 2 | 2 . . Hover 5 | . 5 . Flight . | . . . Utility 2 | 1 1 . Device . | . . . Storage 1 | 1 . . Processor 1 | . 1 . Hackware . | . . . Protection . | . . . Artifact . | . . . Weapon 4 | 2 2 . Energy Gun . | . . . Energy Cannon . | . . . Ballistic Gun 4 | 2 2 . Ballistic Cannon . | . . . Launcher . | . . . Special Weapon . | . . . Impact Weapon . | . . . Slashing Weapon . | . . . Piercing Weapon . | . . . Special Melee Weapon . | . . . Unidentified Prototypes . | . . . Parts Lost 5 | . 4 1 Power . | . . . Propulsion 4 | . 3 1 Utility . | . . . Weapon 1 | . 1 . Highest Loss Streak 3 | . 3 1 To Critical Strikes . | . . . Average Slot Usage (%) 96 | . 94 99 Engine 7 | . 11 . Core 6 | . 2 14 Wheel 1 | . 2 . Hover 25 | . 24 27 Storage 14 | . 14 14 Processor 11 | . 10 14 Ballistic Gun 27 | . 27 28 Naked Turns . | . . . Heaviest Build 12 | 11 12 12 Greatest Support 32 | 32 32 13 Greatest Overweight (x) 1 | . 1 . Average Overweight (x) . | . . . Largest Inventory Capacity 8 | 8 8 8 Average Capacity 7 | 7 8 8 Most Carried 8 | 5 6 8 Average Carried 4 | . 3 7 Final Capacity 8 | 8 8 8 Final Carried 8 | . 6 8 Class Distribution -------------------- 100% | Mutant Dominant Class ---------------- Mutant | -10/Materials Mutant | -10/Mines Resources | -11 -10 -10 ----------- Run | Yrd Mat Min Matter Collected 472 | 206 246 20 Remotely . | . . . Salvage Created 567 | . 429 138 Parts 49 | . 36 13 Haulers Intercepted . | . . . Recyclers Shooed . | . . . Parts Field Recycled . | . . . Retrieved Matter . | . . . Parts Self-Destructed . | . . . Prevented . | . . . Kills | -11 -10 -10 ------- Run | Yrd Mat Min Combat Hostiles Destroyed 14 | . 11 3 Guns 14 | . 11 3 Classes Destroyed 6 | . 5 1 Worker 1 | . 1 . Builder 1 | . 1 . Recycler 1 | . . 1 Watcher 1 | . 1 . Swarmer 6 | . 3 3 Grunt 8 | . 8 . Best Kill Streak 5 | . 5 3 Combat Bots Only 5 | . 5 3 Max Kills in Single Turn 2 | . 1 2 Gunslinging 1 | . . 1 Exploded . | . . . Melee . | . . . Uniques/NPCs Destroyed . | . . . Combat | -11 -10 -10 -------- Run | Yrd Mat Min Hostile Shots Fired 89 | . 68 21 Missed 22 | . 14 8 Damage Taken 749 | . 618 131 Core 258 | . 218 40 Absorbed by Shields . | . . . Core Remaining (%) 100 | 100 . . Volleys Fired 65 | . 41 24 Largest 2 | . 2 2 Hottest 40 | . 40 40 Shots Fired 123 | . 76 47 Gun 123 | . 76 47 Cannon . | . . . Launcher . | . . . Special . | . . . Kinetic 123 | . 76 47 Thermal . | . . . Explosive . | . . . Electromagnetic . | . . . Robot Hit Streak 11 | . 11 4 Robot Miss Streak 4 | . 4 2 Penetration Max . | . . . Secondary Targets 2 | . 1 1 Max Gunslinging Chain 1 | . 1 1 Shots Hit Robots 70 | . 55 15 Core Hits 40 | . 30 10 Critical Kills 1 | . 1 . Critical Parts Destroyed . | . . . Critical Strikes 1 | . 1 . Destroy 1 | . 1 . Melee Attacks . | . . . Impact . | . . . Slashing . | . . . Piercing . | . . . Sneak Attacks . | . . . Combat Hostiles . | . . . Follow-up Attacks . | . . . Damage Inflicted 680 | . 552 128 Guns 657 | . 529 128 Cannons . | . . . Explosions . | . . . Melee . | . . . Ramming 23 | . 23 . Kinetic 657 | . 529 128 Thermal . | . . . Explosive . | . . . Electromagnetic . | . . . Impact . | . . . Slashing . | . . . Piercing . | . . . Highest Corruption 5 | . 5 5 Average Corruption 5 | . 5 5 Corruption Purged . | . . . Corruption Blocked . | . . . Effects 14 | . 6 8 Message Errors 3 | . 3 . Matter Fused 1 | . . 1 Heat Flow Errors 5 | . 2 3 Energy Discharges 1 | . . 1 Data Loss (minor) 1 | . . 1 Data Loss (major) 1 | . . 1 Misfires 1 | . 1 . Weapon Failures 1 | . . 1 Overload Shots . | . . . Overflow Damage . | . . . Projectiles . | . . . Explosions . | . . . Melee . | . . . Knockbacks 1 | . 1 . Impact 1 | . 1 . Kinetic . | . . . Secondary . | . . . Self-Inflicted Damage 11 | . 11 . Shots . | . . . Rammed 2 | . 2 . Targets Rammed 2 | . 2 . Kicked . | . . . Crushed . | . . . Highest Temperature 211 | . 211 201 Average Temperature 47 | . 45 50 Received Heat Transfer 348 | . 300 48 Siege Activations . | . . . Robots Corrupted . | . . . Combat Hostiles . | . . . Parts Fried . | . . . Impact Corruptions . | . . . Robots Melted . | . . . Combat Hostiles . | . . . Parts Melted . | . . . Heat Transferred . | . . . Parts Sabotaged . | . . . Parts Stolen . | . . . Parts Stripped . | . . . Power Chain Reactions . | . . . Alert | -11 -10 -10 ------- Run | Yrd Mat Min Peak Influence 322 | . 322 245 Initial 125 | . . 125 Average 158 | . 155 182 Maximum Alert Level 1 | . 1 1 Low Security (%) 62 | 100 63 54 Level 1 37 | . 36 45 Level 2 . | . . . Level 3 . | . . . Level 4 . | . . . Level 5 . | . . . High Security . | . . . Max Security . | . . . Squads Dispatched 3 | . 3 . Investigation 2 | . 2 . Extermination . | . . . Reinforcement 1 | . 1 . Assault . | . . . Garrison . | . . . Intercept . | . . . Searches Triggered . | . . . Construction Impeded . | . . . Haulers Reinforced . | . . . Active Scanning Responses . | . . . Cargo Convoy Interrupts . | . . . Stealth | -11 -10 -10 --------- Run | Yrd Mat Min Distress Signals 2 | . 1 1 Communications Jammed . | . . . Distress Signals . | . . . Times Spotted 24 | . 18 6 Peak Tracking Total 6 | . 6 3 Tactical Retreats 2 | . 1 1 Traps | -11 -10 -10 ------- Run | Yrd Mat Min Traps Triggered 2 | . 2 . Indirectly . | . . . Trap Hack Attempts . | . . . Triggered . | . . . Disarmed . | . . . Reprogrammed . | . . . Reused . | . . . Traps Extracted . | . . . Installed . | . . . Triggered . | . . . Machines | -11 -10 -10 ---------- Run | Yrd Mat Min Machines Disabled . | . . . Max in Single Turn . | . . . Machines Repaired . | . . . Machines Dismantled . | . . . Machines Sabotaged . | . . . Overloaded Fab Kills . | . . . Hacking | -11 -10 -10 --------- Run | Yrd Mat Min Machines Accessed 8 | . 7 1 Terminals 8 | . 7 1 Fabricators . | . . . Repair Stations . | . . . Recycling Units . | . . . Scanalyzers . | . . . Garrison Access . | . . . Total Hacks 14 | . 13 1 Successful 9 | . 8 1 Failed 5 | . 5 . Catastrophic 1 | . 1 . Database Lockouts . | . . . Manual 1 | . 1 . Terminals 14 | . 13 1 Fabricators . | . . . Repair Stations . | . . . Recycling Units . | . . . Scanalyzers . | . . . Garrison Access . | . . . Terminal Hacks 9 | . 8 1 Robot Analysis 1 | . 1 . Prototype ID Bank 3 | . 3 . Dispatch Records 1 | . 1 . Recall Investigation 1 | . 1 . Recall Reinforcements 1 | . 1 . Zone Layout 2 | . 1 1 Fabricator Hacks . | . . . Repair Station Hacks . | . . . Recycling Unit Hacks . | . . . Scanalyzer . | . . . Garrison Access Hacks . | . . . Unauthorized Hacks . | . . . Terminals . | . . . Fabricators . | . . . Repair Stations . | . . . Recycling Units . | . . . Scanalyzers . | . . . Garrison Access . | . . . Data Cores Recovered . | . . . Used . | . . . Hacking Detections 4 | . 4 . Full Trace Events 2 | . 2 . Feedback Events . | . . . Feedback Blocked . | . . . Robot Schematics Acquired . | . . . Robots Built . | . . . Authchips . | . . . Time . | . . . Total Robot Build Rating . | . . . Part Schematics Acquired . | . . . Parts Built . | . . . Authchips . | . . . Time . | . . . Total Part Build Rating . | . . . Parts Repaired . | . . . Time . | . . . Parts Recycled . | . . . Recycled Matter . | . . . Retrieved Matter . | . . . Retrieved Components . | . . . Parts Scanalyzed . | . . . Part Schematics Acquired . | . . . Parts Damaged . | . . . Bothacking | -11 -10 -10 ------------ Run | Yrd Mat Min Used RIF Installer . | . . . Robots Hacked . | . . . Non-combat . | . . . Combat . | . . . Robot Hacks Applied . | . . . Relay Couplers Released . | . . . Fabnet Peak Effective % . | . . . Robots Rewired . | . . . Allies Hacked . | . . . Hacks Repelled . | . . . Allies | -11 -10 -10 -------- Run | Yrd Mat Min Total Allies . | . . . Largest Group . | . . . Highest-Rated Group . | . . . Highest-Rated Ally . | . . . Total Orders . | . . . Ally Attacks . | . . . Total Damage . | . . . Kills . | . . . Allies Corrupted . | . . . Allies Melted . | . . . Intel | -11 -10 -10 ------- Run | Yrd Mat Min Robot Analysis Total 1 | . 1 . Derelict Logs Recovered . | . . . Drone Launches . | . . . Drone Recoveries . | . . . Exploration | -11 -10 -10 ------------- Run | Yrd Mat Min Turns Passed 1128 | 46 694 388 Spaces Moved 1407 | 40 796 571 Core 10 | 10 . . Treads . | . . . Legs . | . . . Wheels 74 | 30 44 . Hover 1323 | . 752 571 Flight . | . . . Fastest Speed 50 | 50 56 56 Average Speed 58 | 87 59 56 Slowest Speed 120 | 100 120 56 Overloaded Moves . | . . . Propulsion Burnouts . | . . . Robots Hopped . | . . . Cave-ins Triggered . | . . . Exploration Rate (%) 62 | 3 98 86 Regions Visited 2 Branch Regions 1 Pre-discovered Areas . | . . . Known Exits Taken 1 | . 1 . Unknown Exits Taken 1 | 1 . . Scrap Searched 1 | . . 1 Spaces Dug . | . . . Terrain Destroyed . | . . . Melee . | . . . Projectile . | . . . AOE . | . . . Terrain Rammed . | . . . Walls Destroyed . | . . . Machines Disabled . | . . . Actions | -11 -10 -10 --------- Run | Yrd Mat Min Total 1606 | 51 951 604 Wait 86 | . 85 1 Move 1405 | 39 795 571 Hop . | . . . Pick Up 26 | 6 15 5 Fast Attach . | . . . Attach 15 | 6 9 . Detach . | . . . Swap . | . . . Drop 7 | . 4 3 Fire 65 | . 41 24 Melee . | . . . Ram 2 | . 2 . Kick . | . . . Crush . | . . . Escape Stasis . | . . . Rewire . | . . . Trap . | . . . Miscellaneous . | . . . Route ------- -11/Scrapyard -10/Materials (discovered 5 exits: *Mat x3 / *Min x2) -10/Mines (discovered 1 exit: [*Exi]) History --------- Turn | Location | Event 5 | -11/Scrapyard | Discovered new exit (range 15) 47 | -11/Scrapyard | Entered Materials 53 | -10/Materials | Discovered new exit (range 14) 212 | -10/Materials | Discovered new exit (range 9) 304 | -10/Materials | Build established: Mutant 328 | -10/Materials | Discovered new exit (range 13) 419 | -10/Materials | Identified exit to Mines 475 | -10/Materials | Core integrity fell below 50% 520 | -10/Materials | Lost 3 parts (2n1w) 533 | -10/Materials | Discovered new exit (range 14) 539 | -10/Materials | Identified exit to Materials 650 | -10/Materials | Core integrity fell below 20% 697 | -10/Materials | Discovered exit to Materials (range 10) 741 | -10/Materials | Entered Mines 938 | -10/Mines | Found a hidden stash of uninstalled traps 1040 | -10/Mines | Deemed a non-threat by the Exiles lab entrance 1040 | -10/Mines | Discovered new exit (range 5) 1090 | -10/Mines | Excavation squad dispatched 1090 | -10/Mines | A large section of the Mines collapsed 1129 | -10/Mines | Destroyed by G-34 Mercenary with Small Laser Last Messages --------------- Downloaded map data. R-06 Scavenger collects Flight Unit. R-06 Scavenger destroyed. Acquired 4 matter. K-01 Serf collects debris. System corrupted: Heat flow error (+169). "No threat detected, you may enter." EXIT=FOUND System corrupted: Substantial component data lost. Derelict Log crushed. ALERT: Suspicious cave-in, suspected derelict activity in mines. Dispatching escorted excavation squad. Hover Unit destroyed. T-07 Excavator is excavating. System corrupted: Lgt. Assault Rifle jammed. T-07 Excavator is excavating. T-07 Excavator destroyed. T-07 Excavator is excavating. Map ----- +----------------------------------------------------+ | ?????????????# #######???????????###### | | ?????????????# ############# | | ????????????## ##### | | ??????????### ############ #???? | | ?????????## ##????????### #???? | | ?????????# ##????????## ##??? | | ?????????# ##?????????# ##?? | | ?????????## ##??????????# ##? | | ??????????## #????########## #? | | ???????????# """ ##????# #?## #? | | ??????????## """ #?????# #??## ## | | ????????### """ #?????# ## ###?## # | | ?????#### #?????# ## ##?# | | ????## ##?????# ## #### | | ????# ##?????# ## #?# | | ????#### ###???# ## ### | | ???????#### ##??# ## ## | | ??????????## #### # ## # | | ???????????# # ### # | | ???????????# ## #?# # | | ???????##### ########### ##?# | | ??????## ## #####?????????## #??# | | ??????# ##????????###### #### | | ??????## #####?????# | | ???????###### # ####????# #### | | ????????????###@t ;#????# ######### | | ?????????????## =%= #??## ##???# | | ??????????????##!| #??# #???# | | ????????????????gg ##??# #???## | | ???????????????? ##???## ##???#### | | ????????????????=%#?????## ##????## | | ?????????????????!#??##### #????# | | ????????????????? #?## #????# | | ?????????????????#### #????# | | ???????????????????# ##????#*# | | ???????????????????# ## ########=# | | ???????????????????## #######?#!=[%[[# | | ????????????????????# ###???????#=###### | | ????????????????????# #?????????# #????? | | ???????????????????## ##????????# #????? | | ??????????????????## ##???????# #????? | | ?????????????????## #???????# #????? | | ?????????????????# ######### ##???? | | ?????????????????## #???? | | ??????????????????### && ########%#???? | | ????????????????????## & #??????# #???? | | ?????????????????????## ##??????#%#???? | | ??????????????????????####???????# #???? | | ?????????????????????????????????#=#???? | | ?????????????????????????????????#%#???? | +----------------------------------------------------+ Best States ------------- Heat Dissipation 25 Energy Generation 14 Energy Capacity 160 Matter Stores 300 Matter Capacity 300 Sight Range 16 Terrain Scan Density 10 Evasion (%) 53 Item Schematics ----------------- None Robot Schematics ------------------ None Fabricated ------------ Nothing Alien Tech Used ----------------- None Achievements -------------- None Challenges ------------ None Game ------ Seed SegregatorBeamTriangulator Manual? 0 Play Time 00:13:55 Cumulative 10.7 hours Start 2024.04.18 @ 19:36:28 End 2024.04.18 @ 19:49:48 Sessions 1 Manual Loads 0 Difficulty Rogue Special Mode None Game No. 17 Rogue 15 Adventurer 2 Explorer 0 Win Type - Total 0 Types 0/0/0/0/0/0/0/0/0 Lore% 18 Gallery% 13 Achievement% 15 Wizard Run 0 Options --------- Layout 1 ASCII 0 Keyboard 0 Movement Mouse Keybinds 0 Fullscreen 1 Font 24/Smallcaps Map View 50x40 Zoom Use 0% Tactical HUD 0 Map Filters NONE Filters NONE Steam 1 RUN: d8b792c3-0025-4fde-95af-3b8631270a2e